fUST/lending_fUST_20240924
["ID","MTS","AMOUNT","RATE_DAILY","PERIOD"]
[339009159,1727119838398,-250.0,0.000267,2]
[339009160,1727119838407,-250.0,0.00026771,2]
[339009161,1727119838426,-2821.11368385,0.00026783,2]
[339009162,1727119838728,-823.45155115,0.00026783,2]
[339009163,1727119838737,-327.748454,0.00026797,2]
[339009164,1727119838747,-250.0,0.00026841,2]
[339009165,1727119838756,-250.0,0.00026912,2]
[339009166,1727119838767,-250.0,0.00026983,2]
[339009167,1727119838776,-1844.038481,0.0002701,2]
[339009168,1727119838786,-250.0,0.00027054,2]
[339009169,1727119838795,-250.0,0.00027124,2]
[339009170,1727119838806,-206.20628,0.000273,120]
[339009171,1727119838815,-317.095336,0.00027397,2]
[339009172,1727119838824,-350.395,0.00028284,19]
[339009173,1727119838834,-2164.71081644,0.00028786,2]
[339009174,1727119838843,-300.0,0.00028853,2]
[339009175,1727119838853,-169.19179425,0.0002988,2]
[339009176,1727119838863,-241.16956169,0.00029969,2]
[339009177,1727119838872,-198.21068328,0.00029969,2]
[339009178,1727119838882,-500.0,0.00029969,2]
[339009179,1727119838891,-500.0,0.00029969,2]
[339009180,1727119838901,-206.95738529,0.00029969,2]
[339009181,1727119838910,-46398.8711465,0.0002997,4]
[339009182,1727119838920,-46068.6245263,0.0002998,4]
[339009183,1727119838930,-46398.8711465,0.0002998,4]
[339009184,1727119838941,-30472.49078722,0.0002999,4]
[339009207,1727119843312,-3293.23929315,0.0002999,4]
[339009208,1727119843439,-2580.92451388,0.0002999,4]
[339009254,1727119846030,-45.71461505,0.0002999,4]
[339009255,1727119846266,-1035.2402356,0.0002999,4]
[339009259,1727120066287,6205.7,0.00025,10]
[339009263,1727120552410,185.465549,0.00024503,2]
[339009272,1727120799146,-169.0897256,0.00025589,2]
[339009273,1727120799167,-2966.1594665,0.00025665,2]
[339009274,1727120799188,-894.415086,0.00025704,2]
[339009275,1727120799209,-214.459574,0.00025842,2]
[339009276,1727120799230,-1218.5214767,0.00026227,2]
[339009277,1727120799252,-894.415086,0.00026389,2]
[339009278,1727120799275,-300.0,0.00026898,2]
[339009279,1727120799299,-300.0,0.00026899,2]
[339009280,1727120799321,-712.14734736,0.00026974,2]
[339009281,1727120832106,-297.898266,0.00025547,2]
[339009282,1727120832129,-168.03230988,0.00025742,2]
[339009283,1727120837147,-41.48788578,0.00025742,2]
[339009284,1727120837171,-209.52019565,0.00026946,2]
[339009285,1727120837195,-1061.66288812,0.00026974,2]
[339009286,1727120837425,-500.0,0.00027,2]
[339009287,1727120837450,-59.75005746,0.00027,2]
[339009288,1727120947135,-300.0,0.0002573,2]
[339009289,1727120947157,-300.0,0.0002573,2]
[339009290,1727120947180,-20909.10686157,0.00025731,2]
[339009291,1727120947210,-686.70431109,0.00025731,2]
[339009292,1727120951151,-816.9369151,0.00025317,2]
[339009293,1727120951173,-1463.12896482,0.00025731,2]
[339009294,1727120956106,-1388.37450224,0.00025731,2]
[339009295,1727120958111,-452.68536028,0.00025731,2]
[339009296,1727120958133,-250.0,0.00026192,2]
[339009297,1727120958155,-250.0,0.00026264,2]
[339009328,1727121031980,-250.0,0.00026336,2]
[339009330,1727121031989,-250.0,0.00026408,2]
[339009332,1727121031999,-250.0,0.0002648,2]
[339009334,1727121032009,-237.0573631,0.00026552,2]
[339009336,1727121032022,-12.9426369,0.00026552,2]
[339009338,1727121032035,-179.0,0.00026573,2]
[339009340,1727121032044,-250.0,0.00026623,2]
[339009342,1727121032053,-250.0,0.00026695,2]
[339009344,1727121032062,-250.0,0.00026767,2]
[339009346,1727121032072,-250.0,0.00026839,2]
[339009348,1727121032081,-250.0,0.00026911,2]
[339009350,1727121032090,-250.0,0.00026983,2]
[339009352,1727121032099,-440.24994254,0.00027,2]
[339009354,1727121032108,-250.0,0.00027054,2]
[339009355,1727121032117,-894.415086,0.00027074,2]
[339009356,1727121032127,-183.18024206,0.00027126,2]
[339009380,1727121038221,-66.81975794,0.00027126,2]
[339009381,1727121038231,-250.0,0.00027198,2]
[339009382,1727121038240,-250.0,0.0002727,2]
[339009383,1727121038249,-250.0,0.00027342,2]
[339009384,1727121038259,-323.911995,0.00027397,2]
[339009385,1727121038268,-250.0,0.00027414,2]
[339009386,1727121038282,-250.0,0.00027485,2]
[339009387,1727121038292,-250.0,0.00027557,2]
[339009388,1727121038301,-189.650857,0.00027933,2]
[339009389,1727121038311,-280.316,0.00028066,18]
[339009390,1727121038320,-150.0,0.00029592,2]
[339009391,1727121038331,-1232.84866713,0.00029621,2]
[339009392,1727121038343,-5171.51106918,0.00029621,2]
[339009393,1727121038352,-1578.69275935,0.000299,2]
[339009394,1727121038361,-230.03,0.0002997,2]
[339009395,1727121038371,-500.0,0.00029999,2]
[339009396,1727121038380,-500.0,0.00029999,2]
[339009397,1727121038390,-500.0,0.00029999,2]
[339009398,1727121038399,-271.56106937,0.00029999,2]
[339009399,1727121038409,-500.0,0.00029999,2]
[339009400,1727121038418,-500.0,0.00029999,2]
[339009401,1727121038428,-500.0,0.00029999,2]
[339009402,1727121038437,-500.0,0.00029999,2]
[339009403,1727121038447,-500.0,0.00029999,2]
[339009404,1727121038457,-500.0,0.00029999,2]
[339009405,1727121038470,-151.0,0.0003,120]
[339009406,1727121038480,-40773.0,0.0003,2]
[339009407,1727121038489,-761.5154983,0.0003,30]
[339009408,1727121038499,-500.0,0.0003005,5]
[339009409,1727121038509,-150.112233,0.000307,7]
[339009410,1727121038519,-177.44194817,0.00030713,2]
[339009411,1727121038529,-299.01853932,0.00030713,2]
[339009412,1727121038539,-553.6584111,0.00030713,2]
[339009413,1727121038548,-168.81869318,0.00030713,2]
[339009414,1727121038558,-500.0,0.00030713,2]
[339009415,1727121038568,-596.88634931,0.00030713,2]
[339009416,1727121038577,-500.0,0.00030713,2]
[339009417,1727121038586,-500.0,0.00030713,2]
[339009418,1727121038595,-500.0,0.00030713,2]
[339009419,1727121038605,-500.0,0.00030713,2]
[339009420,1727121038614,-500.0,0.00030713,2]
[339009421,1727121038624,-69938.9051464,0.00030714,4]
[339009422,1727121038634,-2061.94997986,0.00030714,4]
[339009423,1727121038646,-59700.63391704,0.00030714,4]
[339009424,1727121038656,-150.112233,0.000309,10]
[339009425,1727121038665,-150.112233,0.000312,9]
[339009426,1727121038675,-173.553964,0.000312,7]
[339009427,1727121038684,-150.112233,0.000314,6]
[339009428,1727121038693,-150.112233,0.000314,9]
[339009429,1727121038702,-500.0,0.00031506,30]
[339009430,1727121038712,-161.79766389,0.00031506,30]
[339009431,1727121038722,-1000.0,0.00031569,2]
[339009432,1727121038731,-150.112233,0.000316,8]
[339009433,1727121038740,-1578.6927593,0.00031614,2]
[339009434,1727121038749,-2000.0,0.00031669,2]
[339009435,1727121038759,-150.112233,0.000317,6]
[339009436,1727121038770,-150.112233,0.000317,9]
[339009437,1727121038779,-150.112233,0.000319,8]
[339009438,1727121038789,-150.112233,0.000319,8]
[339009439,1727121038799,-280.0,0.00031905,2]
[339009440,1727121038808,-280.0,0.00031905,2]
[339009441,1727121038818,-280.0,0.00031905,2]
[339009442,1727121038827,-280.0,0.00031905,2]
[339009443,1727121038836,-280.0,0.00031905,2]
[339009444,1727121038846,-280.0,0.00031905,2]
[339009445,1727121038855,-280.0,0.00031905,2]
[339009446,1727121038865,-280.0,0.00031905,2]
[339009447,1727121038874,-280.0,0.00031905,2]
[339009448,1727121038884,-280.0,0.00031905,2]
[339009449,1727121038894,-280.0,0.00031905,2]
[339009450,1727121038903,-280.0,0.00031905,2]
[339009451,1727121038913,-280.0,0.00031905,2]
[339009452,1727121038922,-280.0,0.00031905,2]
[339009453,1727121038933,-153.0,0.00031905,2]
[339009454,1727121038942,-153.0,0.00031905,2]
[339009455,1727121038952,-153.0,0.00031905,2]
[339009456,1727121038961,-153.0,0.00031905,2]
[339009457,1727121038971,-153.0,0.00031905,2]
[339009458,1727121038980,-153.0,0.00031905,2]
[339009459,1727121038989,-153.0,0.00031905,2]
[339009460,1727121038998,-153.0,0.00031905,2]
[339009461,1727121039008,-153.0,0.00031905,2]
[339009462,1727121039017,-153.0,0.00031905,2]
[339009463,1727121039026,-280.0,0.00031907,2]
[339009464,1727121039037,-280.0,0.00031907,2]
[339009465,1727121039046,-280.0,0.00031907,2]
[339009466,1727121039055,-280.0,0.00031907,2]
[339009467,1727121039065,-280.0,0.00031907,2]
[339009468,1727121039074,-280.0,0.00031907,2]
[339009469,1727121039084,-280.0,0.00031907,2]
[339009470,1727121039093,-280.0,0.00031907,2]
[339009471,1727121039102,-280.0,0.00031907,2]
[339009472,1727121039111,-280.0,0.00031907,2]
[339009473,1727121039121,-280.0,0.00031907,2]
[339009474,1727121039130,-280.0,0.00031907,2]
[339009475,1727121039140,-280.0,0.00031907,2]
[339009476,1727121039149,-280.0,0.00031907,2]
[339009477,1727121039158,-153.0,0.00031907,2]
[339009478,1727121039168,-153.0,0.00031907,2]
[339009479,1727121039178,-153.0,0.00031907,2]
[339009480,1727121039187,-153.0,0.00031907,2]
[339009481,1727121039197,-153.0,0.00031907,2]
[339009482,1727121039206,-153.0,0.00031907,2]
[339009483,1727121039216,-153.0,0.00031907,2]
[339009484,1727121039225,-153.0,0.00031907,2]
[339009485,1727121039235,-153.0,0.00031907,2]
[339009486,1727121039244,-153.0,0.00031907,2]
[339009487,1727121039254,-280.0,0.00031908,2]
[339009488,1727121039263,-280.0,0.00031908,2]
[339009489,1727121039273,-280.0,0.00031908,2]
[339009490,1727121039283,-280.0,0.00031908,2]
[339009491,1727121039292,-280.0,0.00031908,2]
[339009492,1727121039301,-280.0,0.00031908,2]
[339009493,1727121039311,-280.0,0.00031908,2]
[339009494,1727121039321,-280.0,0.00031908,2]
[339009495,1727121039330,-280.0,0.00031908,2]
[339009496,1727121039339,-280.0,0.00031908,2]
[339009497,1727121039349,-280.0,0.00031908,2]
[339009498,1727121039359,-280.0,0.00031908,2]
[339009499,1727121039368,-280.0,0.00031908,2]
[339009500,1727121039378,-280.0,0.00031908,2]
[339009501,1727121039388,-153.0,0.00031908,2]
[339009502,1727121039398,-153.0,0.00031908,2]
[339009503,1727121039407,-153.0,0.00031908,2]
[339009504,1727121039417,-153.0,0.00031908,2]
[339009505,1727121039427,-153.0,0.00031908,2]
[339009506,1727121039436,-153.0,0.00031908,2]
[339009507,1727121039446,-153.0,0.00031908,2]
[339009508,1727121039455,-153.0,0.00031908,2]
[339009509,1727121039466,-153.0,0.00031908,2]
[339009510,1727121039478,-153.0,0.00031908,2]
[339009511,1727121039487,-280.0,0.0003191,2]
[339009512,1727121039497,-280.0,0.0003191,2]
[339009513,1727121039507,-280.0,0.0003191,2]
[339009514,1727121039516,-280.0,0.0003191,2]
[339009515,1727121039526,-280.0,0.0003191,2]
[339009516,1727121039536,-280.0,0.0003191,2]
[339009517,1727121039547,-280.0,0.0003191,2]
[339009518,1727121039557,-280.0,0.0003191,2]
[339009519,1727121039567,-280.0,0.0003191,2]
[339009520,1727121039576,-280.0,0.0003191,2]
[339009521,1727121039585,-280.0,0.0003191,2]
[339009522,1727121039594,-280.0,0.0003191,2]
[339009523,1727121039604,-280.0,0.0003191,2]
[339009524,1727121039614,-280.0,0.0003191,2]
[339009525,1727121039623,-153.0,0.0003191,2]
[339009527,1727121039633,-153.0,0.0003191,2]
[339009529,1727121039642,-153.0,0.0003191,2]
[339009530,1727121039651,-153.0,0.0003191,2]
[339009532,1727121039661,-153.0,0.0003191,2]
[339009535,1727121039670,-153.0,0.0003191,2]
[339009536,1727121039680,-153.0,0.0003191,2]
[339009538,1727121039690,-153.0,0.0003191,2]
[339009540,1727121039699,-153.0,0.0003191,2]
[339009542,1727121039709,-153.0,0.0003191,2]
[339009544,1727121039718,-280.0,0.0003192,2]
[339009545,1727121039727,-280.0,0.0003192,2]
[339009547,1727121039737,-280.0,0.0003192,2]
[339009549,1727121039746,-280.0,0.0003192,2]
[339009550,1727121039755,-280.0,0.0003192,2]
[339009552,1727121039765,-280.0,0.0003192,2]
[339009554,1727121039774,-280.0,0.0003192,2]
[339009556,1727121039784,-280.0,0.0003192,2]
[339009557,1727121039793,-280.0,0.0003192,2]
[339009559,1727121039803,-280.0,0.0003192,2]
[339009561,1727121039812,-280.0,0.0003192,2]
[339009563,1727121039822,-280.0,0.0003192,2]
[339009565,1727121039831,-280.0,0.0003192,2]
[339009566,1727121039840,-153.0,0.0003192,2]
[339009568,1727121039849,-153.0,0.0003192,2]
[339009570,1727121039859,-153.0,0.0003192,2]
[339009572,1727121039868,-153.0,0.0003192,2]
[339009574,1727121039877,-153.0,0.0003192,2]
[339009575,1727121039887,-153.0,0.0003192,2]
[339009577,1727121039896,-2185.9234228,0.00031951,15]
[339009579,1727121039906,-7321.51315429,0.00031951,15]
[339009581,1727121039915,-69938.9051464,0.00031951,4]
[339009582,1727121039925,-61762.5838969,0.00031951,4]
[339009584,1727121039936,-500.0,0.00031961,10]
[339009586,1727121039945,-150.112233,0.00032,8]
[339009588,1727121039955,-387.83972564,0.00032,5]
[339009590,1727121039964,-500.0,0.00032,5]
[339009591,1727121039973,-150.112233,0.000321,7]
[339009593,1727121039982,-150.112233,0.000322,9]
[339009595,1727121039992,-150.112233,0.000323,7]
[339009597,1727121040001,-150.112233,0.000323,5]
[339009599,1727121040011,-150.112233,0.000324,9]
[339009600,1727121040020,-69938.9051464,0.00032506,4]
[339009602,1727121040030,-61762.5838969,0.00032506,4]
[339009604,1727121040039,-88888.0,0.00032516,5]
[339009606,1727121040048,-1000.0,0.00032548,5]
[339009607,1727121040058,-368.77774801,0.00032593,2]
[339009608,1727121040067,-150.112233,0.000326,10]
[339009609,1727121040077,-150.112233,0.000326,5]
[339009610,1727121040086,-69938.9051464,0.00032606,4]
[339009611,1727121040095,-34046.88942815,0.00032606,4]
[339009612,1727121040107,-27715.69446875,0.00032606,4]
[339009613,1727121040117,-150.112233,0.000327,8]
[339009614,1727121040126,-30000.0,0.00032776,120]
[339009615,1727121040135,-1078.89623514,0.00032776,2]
[339009616,1727121040145,-500.0,0.00032783,10]
[339009617,1727121040155,-150.112233,0.000328,10]
[339009618,1727121040164,-69938.9051464,0.00032856,4]
[339009619,1727121040174,-61762.5838969,0.00032856,5]
[339009620,1727121040183,-61762.5838969,0.00032866,5]
[339009621,1727121040192,-445.44436858,0.00032873,5]
[339009622,1727121040202,-500.0,0.00032873,5]
[339009623,1727121040211,-500.0,0.00032875,30]
[339009624,1727121040221,-500.0,0.00032876,30]
[339009625,1727121040231,-500.0,0.00032876,30]
[339009626,1727121040240,-151.0,0.00032876,7]
[339009627,1727121040250,-151.0,0.00032876,7]
[339009628,1727121040259,-151.0,0.00032876,7]
[339009629,1727121040269,-151.0,0.00032876,7]
[339009630,1727121040278,-500.0,0.00032876,30]
[339009631,1727121040290,-517.68296053,0.00032876,30]
[339009632,1727121040299,-500.0,0.00032876,30]
[339009633,1727121040308,-605.89959351,0.00032876,30]
[339009634,1727121040318,-500.0,0.00032876,30]
[339009635,1727121040327,-500.0,0.00032876,30]
[339009636,1727121040337,-500.0,0.00032876,30]
[339009637,1727121040346,-500.0,0.00032876,30]
[339009638,1727121040356,-500.0,0.00032876,30]
[339009639,1727121040365,-500.0,0.00032876,30]
[339009640,1727121040375,-500.0,0.00032876,30]
[339009641,1727121040385,-500.0,0.00032876,30]
[339009642,1727121040395,-500.0,0.00032876,30]
[339009643,1727121040405,-500.0,0.00032876,30]
[339009644,1727121040414,-500.0,0.00032876,30]
[339009645,1727121040423,-500.0,0.00032876,30]
[339009646,1727121040433,-500.0,0.00032876,30]
[339009647,1727121040442,-500.0,0.00032876,30]
[339009648,1727121040452,-500.0,0.00032876,30]
[339009649,1727121040464,-151.0,0.00032876,7]
[339009650,1727121040473,-500.0,0.00032876,30]
[339009651,1727121040482,-632.05933359,0.00032876,30]
[339009652,1727121040492,-500.0,0.00032876,30]
[339009653,1727121040500,-500.0,0.00032876,30]
[339009654,1727121040511,-500.0,0.00032876,30]
[339009655,1727121040521,-500.0,0.00032876,30]
[339009656,1727121040531,-1998.22,0.00032876,30]
[339009657,1727121040541,-500.0,0.00032876,30]
[339009658,1727121040551,-500.0,0.00032876,30]
[339009659,1727121040561,-500.0,0.00032876,30]
[339009660,1727121040570,-500.0,0.00032876,30]
[339009661,1727121040580,-500.0,0.00032876,30]
[339009662,1727121040590,-500.0,0.00032876,30]
[339009663,1727121040599,-500.0,0.00032876,30]
[339009664,1727121040608,-500.0,0.00032876,30]
[339009665,1727121040617,-500.0,0.00032876,30]
[339009666,1727121040627,-500.0,0.00032876,30]
[339009667,1727121040638,-500.0,0.00032876,30]
[339009668,1727121040648,-696.93,0.00032876,25]
[339009669,1727121040657,-500.0,0.00032876,30]
[339009670,1727121040667,-500.0,0.00032876,30]
[339009671,1727121040676,-500.0,0.00032876,30]
[339009672,1727121040685,-500.0,0.00032876,30]
[339009673,1727121040695,-500.0,0.00032876,30]
[339009674,1727121040704,-500.0,0.00032876,30]
[339009675,1727121040714,-500.0,0.00032876,30]
[339009676,1727121040723,-500.0,0.00032876,30]
[339009677,1727121040732,-500.0,0.00032876,30]
[339009678,1727121040741,-500.0,0.00032876,30]
[339009679,1727121040750,-500.0,0.00032876,30]
[339009680,1727121040760,-500.0,0.00032876,30]
[339009681,1727121040769,-297.37173181,0.00032876,30]
[339009682,1727121040779,-500.0,0.00032876,30]
[339009683,1727121040789,-500.0,0.00032876,30]
[339009684,1727121040799,-500.0,0.00032876,30]
[339009685,1727121040808,-357.9401846,0.00032876,30]
[339009686,1727121040817,-500.0,0.00032876,30]
[339009687,1727121040826,-500.0,0.00032876,30]
[339009688,1727121040836,-500.0,0.00032876,30]
[339009689,1727121040846,-500.0,0.00032876,30]
[339009690,1727121040855,-500.0,0.00032876,30]
[339009691,1727121040864,-500.0,0.00032876,30]
[339009692,1727121040873,-500.0,0.00032876,30]
[339009693,1727121040882,-240.42182734,0.00032876,30]
[339009694,1727121040892,-500.0,0.00032876,30]
[339009695,1727121040901,-500.0,0.00032876,30]
[339009696,1727121040910,-500.0,0.00032876,30]
[339009697,1727121040920,-500.0,0.00032876,30]
[339009698,1727121040929,-500.0,0.00032876,30]
[339009699,1727121040938,-508.79872165,0.00032876,10]
[339009700,1727121040947,-500.0,0.00032876,30]
[339009701,1727121040957,-500.60101631,0.00032876,30]
[339009702,1727121040966,-500.0,0.00032876,30]
[339009703,1727121040977,-500.0,0.00032876,30]
[339009704,1727121040986,-500.0,0.00032876,30]
[339009705,1727121040995,-500.0,0.00032876,30]
[339009706,1727121041004,-500.0,0.00032876,30]
[339009707,1727121041013,-1000.0,0.00032876,30]
[339009708,1727121041023,-500.0,0.00032876,30]
[339009709,1727121041034,-500.0,0.00032876,30]
[339009710,1727121041043,-500.0,0.00032876,30]
[339009711,1727121041052,-500.0,0.00032876,30]
[339009712,1727121041061,-500.0,0.00032876,30]
[339009713,1727121041071,-500.0,0.00032876,30]
[339009714,1727121041081,-500.0,0.00032876,30]
[339009715,1727121041090,-502.82690901,0.00032876,30]
[339009716,1727121041100,-500.0,0.00032876,30]
[339009717,1727121041109,-500.0,0.00032876,30]
[339009718,1727121041119,-500.0,0.00032876,30]
[339009719,1727121041128,-500.0,0.00032876,30]
[339009720,1727121041138,-500.0,0.00032876,30]
[339009721,1727121041148,-500.0,0.00032876,30]
[339009722,1727121041157,-500.0,0.00032876,30]
[339009723,1727121041167,-500.0,0.00032876,30]
[339009724,1727121041176,-500.0,0.00032876,30]
[339009725,1727121041186,-500.0,0.00032876,30]
[339009726,1727121041196,-500.0,0.00032876,30]
[339009727,1727121041205,-500.0,0.00032876,30]
[339009728,1727121041214,-500.0,0.00032876,30]
[339009729,1727121041224,-500.0,0.00032876,30]
[339009730,1727121041233,-500.0,0.00032876,30]
[339009731,1727121041242,-500.0,0.00032876,30]
[339009732,1727121041252,-249.6,0.00032876,30]
[339009733,1727121041262,-237.802292,0.00032876,7]
[339009734,1727121041271,-500.0,0.00032876,30]
[339009735,1727121041281,-501.97950968,0.00032876,30]
[339009736,1727121041299,-500.0,0.00032876,30]
[339009737,1727121041309,-500.0,0.00032876,30]
[339009738,1727121041318,-500.0,0.00032876,30]
[339009739,1727121041327,-500.0,0.00032876,30]
[339009740,1727121041488,-500.0,0.00032876,30]
[339009741,1727121041498,-500.0,0.00032876,30]
[339009742,1727121041507,-500.0,0.00032876,30]
[339009743,1727121041518,-500.0,0.00032876,30]
[339009744,1727121041527,-500.0,0.00032876,30]
[339009745,1727121041540,-500.0,0.00032876,30]
[339009746,1727121041549,-500.0,0.00032876,30]
[339009747,1727121041558,-500.0,0.00032876,30]
[339009748,1727121041567,-500.0,0.00032876,30]
[339009749,1727121041576,-500.0,0.00032876,30]
[339009750,1727121041586,-151.0,0.00032876,7]
[339009751,1727121041595,-500.0,0.00032876,30]
[339009752,1727121041604,-500.0,0.00032876,30]
[339009753,1727121041613,-500.0,0.00032876,30]
[339009754,1727121041622,-500.0,0.00032876,30]
[339009755,1727121041632,-500.0,0.00032876,30]
[339009756,1727121041641,-500.0,0.00032876,30]
[339009757,1727121041650,-502.92076368,0.00032876,30]
[339009758,1727121041659,-500.0,0.00032876,30]
[339009759,1727121041668,-500.0,0.00032876,2]
[339009760,1727121041677,-500.0,0.00032876,30]
[339009761,1727121041687,-500.0,0.00032876,30]
[339009762,1727121041696,-500.0,0.00032876,30]
[339009763,1727121041706,-500.0,0.00032876,30]
[339009764,1727121041715,-500.0,0.00032876,30]
[339009765,1727121041725,-151.0,0.00032876,7]
[339009766,1727121041734,-500.0,0.00032876,30]
[339009767,1727121041743,-500.0,0.00032876,30]
[339009768,1727121041752,-500.0,0.00032876,30]
[339009769,1727121041761,-500.0,0.00032876,30]
[339009770,1727121041770,-500.0,0.00032876,30]
[339009771,1727121041780,-500.0,0.00032876,30]
[339009772,1727121041791,-500.0,0.00032876,30]
[339009773,1727121041800,-500.0,0.00032876,30]
[339009774,1727121041808,-500.0,0.00032876,30]
[339009775,1727121041817,-500.0,0.00032876,30]
[339009776,1727121041826,-500.0,0.00032876,30]
[339009777,1727121041836,-151.0,0.00032876,7]
[339009778,1727121041845,-500.0,0.00032876,30]
[339009779,1727121041855,-500.0,0.00032876,30]
[339009780,1727121041865,-500.0,0.00032876,30]
[339009781,1727121041874,-500.0,0.00032876,30]
[339009782,1727121041884,-500.0,0.00032876,30]
[339009783,1727121041893,-500.0,0.00032876,30]
[339009784,1727121041902,-500.0,0.00032876,30]
[339009785,1727121041911,-500.0,0.00032876,30]
[339009786,1727121041920,-500.0,0.00032876,30]
[339009787,1727121041930,-500.0,0.00032876,30]
[339009788,1727121041940,-630.1752367,0.00032876,30]
[339009789,1727121041949,-500.0,0.00032876,30]
[339009790,1727121041958,-500.64393082,0.00032876,30]
[339009791,1727121041968,-500.0,0.00032876,30]
[339009792,1727121041977,-500.0,0.00032876,30]
[339009793,1727121041986,-500.0,0.00032876,30]
[339009794,1727121041995,-500.0,0.00032876,30]
[339009795,1727121042005,-500.0,0.00032876,30]
[339009796,1727121042014,-500.0,0.00032876,30]
[339009797,1727121042024,-500.0,0.00032876,30]
[339009798,1727121042033,-523.99341431,0.00032876,30]
[339009799,1727121042042,-500.0,0.00032876,30]
[339009800,1727121042051,-317.654269,0.00032876,7]
[339009801,1727121042060,-501.18471424,0.00032876,30]
[339009802,1727121042069,-500.84314908,0.00032876,30]
[339009803,1727121042078,-501.68546694,0.00032876,30]
[339009804,1727121042088,-503.29681429,0.00032876,30]
[339009805,1727121042098,-317.654269,0.00032876,7]
[339009806,1727121042107,-636.8,0.00032876,30]
[339009807,1727121042116,-500.0,0.00032876,30]
[339009808,1727121042125,-498.10133189,0.00032876,30]
[339009809,1727121042134,-500.0,0.00032876,30]
[339009810,1727121042144,-500.0,0.00032876,30]
[339009811,1727121042153,-502.57620375,0.00032876,30]
[339009812,1727121042162,-512.54300089,0.00032876,30]
[339009813,1727121042171,-500.0,0.00032876,30]
[339009814,1727121042181,-500.0,0.00032876,30]
[339009815,1727121042190,-500.0,0.00032876,30]
[339009816,1727121042200,-500.0,0.00032876,5]
[339009817,1727121042209,-500.0,0.00032876,30]
[339009818,1727121042218,-500.0,0.00032876,30]
[339009819,1727121042228,-500.0,0.00032876,30]
[339009820,1727121042237,-500.0,0.00032876,30]
[339009821,1727121042246,-500.0,0.00032876,30]
[339009822,1727121042255,-500.0,0.00032876,30]
[339009823,1727121042265,-151.0,0.00032876,7]
[339009824,1727121042274,-500.0,0.00032876,30]
[339009825,1727121042283,-500.0,0.00032876,30]
[339009826,1727121042293,-500.0,0.00032876,30]
[339009827,1727121042302,-500.0,0.00032876,30]
[339009828,1727121042311,-500.0,0.00032876,30]
[339009829,1727121042320,-500.0,0.00032876,30]
[339009830,1727121042329,-500.0,0.00032876,30]
[339009831,1727121042339,-500.0,0.00032876,30]
[339009832,1727121042348,-500.0,0.00032876,30]
[339009833,1727121042357,-151.0,0.00032876,7]
[339009834,1727121042366,-427.7263552,0.00032876,30]
[339009835,1727121042376,-500.0,0.00032876,30]
[339009836,1727121042385,-501.06796605,0.00032876,30]
[339009837,1727121042394,-151.0,0.00032876,7]
[339009838,1727121042403,-500.0,0.00032876,30]
[339009839,1727121042413,-500.0,0.00032876,30]
[339009840,1727121042422,-151.0,0.00032876,7]
[339009841,1727121042432,-500.0,0.00032876,30]